bitfinex/quotes_ETHUSD_20251023
["timestamp","ask_amount","ask_price","bid_price","bid_amount"]
[1761202745616,0.001,3891.9,3891.8,8.37118511]
[1761202746050,0.001,3891.9,3891.8,8.38118511]
[1761202746222,0.001,3891.9,3891.8,7.91658511]
[1761202746419,0.001,3891.9,3891.8,9.22217766]
[1761202747146,0.001,3891.9,3891.8,9.67677766]
[1761202747739,0.2102,3893.1,3891.9,4.63151909]
[1761202748051,0.2102,3893.1,3892.6,4.63105703]
[1761202748219,0.2102,3893.1,3892.6,7.90705703]
[1761202748422,0.2102,3893.1,3892.6,10.68866903]
[1761202748822,0.2283,3893.4,3892.6,10.68866903]
[1761202749142,0.1915,3893.3,3892.6,10.68866903]
[1761202749950,0.07358988,3893.6,3893.5,3.0752632]
[1761202750158,0.07358988,3893.6,3893.5,7.9064632]
[1761202750966,0.07358988,3893.6,3893.5,8.3710632]
[1761202751156,0.07358988,3893.6,3893.5,9.00041647]
[1761202751546,0.07358988,3893.6,3893.5,9.46501647]
[1761202751945,0.07358988,3893.6,3893.5,9.00041647]
[1761202752126,0.07458988,3893.6,3893.5,5.72441647]
[1761202752322,0.07458988,3893.6,3893.5,10.73541647]
[1761202752651,0.07458988,3893.6,3893.5,5.72441647]
[1761202752853,0.07458988,3893.6,3893.5,9.6414632]
[1761202753256,0.07458988,3893.6,3893.5,4.6304632]
[1761202753455,0.25388988,3893.6,3893.5,3.79608]
[1761202753655,0.25388988,3893.6,3893.5,7.07308]
[1761202754050,0.25388988,3893.6,3893.5,5.33908]
[1761202754641,0.25388988,3893.6,3893.5,5.33808]
[1761202755230,0.25388988,3893.6,3893.5,5.46688]
[1761202755559,0.25388988,3893.6,3893.5,8.0352632]
[1761202755747,0.25388988,3893.6,3893.5,5.46688]
[1761202756530,0.07458988,3893.6,3893.5,5.46688]
[1761202756850,0.25388988,3893.6,3893.5,8.0352632]
[1761202757626,0.07458988,3893.6,3893.5,8.0352632]
[1761202757829,0.07458988,3893.6,3893.5,9.09564048]
[1761202759354,0.07458988,3893.6,3893.5,8.0352632]
[1761202760064,0.07458988,3893.6,3893.5,4.7592632]
[1761202760373,0.07458988,3893.6,3893.5,9.7692632]
[1761202761375,0.25438988,3893.6,3893.5,9.7692632]
[1761202762560,0.25438988,3893.6,3893.5,8.0352632]
[1761202764066,0.25438988,3893.6,3893.5,8.0342632]
[1761202764450,0.25438988,3893.6,3893.5,2.19088]
[1761202764655,0.25438988,3893.6,3893.5,5.46588]
[1761202764837,0.25438988,3893.6,3893.5,8.0342632]
[1761202765037,0.25438988,3893.6,3893.5,2.19088]
[1761202765243,0.25438988,3893.6,3893.5,5.46488]
[1761202770401,0.07458988,3893.6,3893.5,8.0332632]
[1761202772372,0.07458988,3893.6,3893.5,8.2932572]
[1761202772565,0.07458988,3893.6,3893.5,8.2912572]
[1761202773296,0.07458988,3893.6,3893.5,8.7547572]
[1761202773498,0.07458988,3893.6,3893.5,5.4827572]
[1761202773705,0.07458988,3893.6,3893.5,8.2912572]
[1761202776995,0.25178988,3893.6,3893.5,7.5223832]
[1761202777195,0.07458988,3893.6,3893.5,8.0292632]
[1761202782620,0.25178988,3893.6,3893.5,8.0292632]
[1761202783094,0.25178988,3893.6,3893.5,8.0272632]
[1761202783297,0.25178988,3893.6,3893.5,4.7592632]
[1761202783506,0.25178988,3893.6,3893.5,8.0272632]
[1761202784410,0.25178988,3893.6,3893.5,4.7592632]
[1761202784612,0.25178988,3893.6,3893.5,8.0262632]
[1761202785326,0.25178988,3893.6,3893.5,8.71980965]
[1761202785491,0.25178988,3893.6,3893.5,2.19088]
[1761202785817,0.25178988,3893.6,3893.5,5.45788]
[1761202788601,0.25178988,3893.6,3893.5,8.0262632]
[1761202789024,0.25178988,3893.6,3893.5,8.0252632]
[1761202789320,0.25178988,3893.6,3893.5,2.19088]
[1761202789813,0.25178988,3893.6,3893.5,5.45588]
[1761202792024,0.25178988,3893.6,3893.5,2.19088]
[1761202792427,0.25178988,3893.6,3893.5,5.45488]
[1761202794013,0.25178988,3893.6,3893.5,2.19088]
[1761202794213,0.25178988,3893.6,3893.5,5.45488]
[1761202794824,2.82010711,3893.6,3893.5,0.1288]
[1761202795201,2.82010711,3893.6,3893.5,2.6338]
[1761202797606,0.07458988,3893.6,3893.5,3.14068]
[1761202798040,0.25238988,3893.6,3893.5,3.14068]
[1761202798235,0.25238988,3893.6,3893.5,0.63568]
[1761202798435,0.25238988,3893.6,3893.5,3.90068]
[1761202798628,0.25238988,3893.6,3893.5,0.63568]
[1761202798829,0.25238988,3893.6,3893.5,3.90068]
[1761202799038,0.25238988,3893.6,3893.5,0.63568]
[1761202799338,0.25238988,3893.6,3893.5,3.90068]
[1761202799841,0.07458988,3893.6,3893.5,3.90068]
[1761202800608,0.07458988,3893.6,3893.5,6.4690632]
[1761202800809,0.07458988,3893.6,3893.5,7.43850094]
[1761202801225,0.07458988,3893.6,3893.5,9.42790094]
[1761202803748,0.07458988,3893.6,3893.5,5.59990094]
[1761202803955,0.07458988,3893.6,3893.5,8.86390094]
[1761202804250,0.07458988,3893.6,3893.5,9.29810094]
[1761202804438,0.07458988,3893.6,3893.5,9.29910094]
[1761202804641,0.07458988,3893.6,3893.5,6.03410094]
[1761202804946,0.07458988,3893.6,3893.5,11.03210094]
[1761202806251,0.07458988,3893.6,3893.5,6.03410094]
[1761202806462,0.07458988,3893.6,3893.5,5.59990094]
[1761202806652,0.07458988,3893.6,3893.5,8.86590094]
[1761202806849,0.07458988,3893.6,3893.5,5.59990094]
[1761202807053,0.07458988,3893.6,3893.5,9.29910094]
[1761202807552,0.07458988,3893.6,3893.5,5.59990094]
[1761202807753,0.07458988,3893.6,3893.5,8.86690094]
[1761202808124,0.07458988,3893.6,3893.5,2.06208]
[1761202808423,0.24408988,3893.6,3891.9,0.002]
[1761202808657,0.24408988,3893.6,3892.7,3.268]
[1761202808970,0.07458988,3893.6,3892.7,3.268]
[1761202809147,0.099,3893.5,3892.7,3.268]
[1761202809552,0.099,3893.5,3892.8,0.50688]
[1761202809858,0.07458988,3893.6,3892.8,3.13085844]
[1761202810057,0.07458988,3893.6,3893.0,0.50688]
[1761202810316,0.099,3893.5,3893.2,0.50688]
[1761202810909,0.099,3893.5,3893.2,2.06208]
[1761202811276,0.099,3893.5,3892.6,0.002]
[1761202811474,0.099,3893.5,3892.8,1.5552]
[1761202811673,0.099,3893.5,3892.9,0.50688]
[1761202811888,2.56851209,3893.4,3892.9,0.50688]
[1761202812085,2.66738638,3893.5,3892.9,0.50688]
[1761202812286,2.56853887,3893.3,3892.9,0.50688]
[1761202812496,0.1001,3893.4,3892.9,0.50688]
[1761202812796,0.1001,3893.3,3892.9,0.50688]
[1761202813314,2.66862936,3893.3,3892.9,0.50688]
[1761202813598,2.56863199,3893.2,3892.9,0.50688]
[1761202813789,0.1001,3893.3,3892.9,0.50688]
[1761202813790,0.1001,3893.1,3892.9,0.50688]
[1761202814293,0.1001,3893.1,3893.0,0.1288]
[1761202815300,0.07458988,3893.6,3893.0,0.1288]
[1761202815470,0.07458988,3893.6,3893.3,0.50688]
[1761202815671,0.07458988,3893.6,3893.5,0.63568]
[1761202815973,0.17468988,3893.6,3893.5,3.90968]
[1761202816571,0.07458988,3893.6,3893.5,3.90968]
[1761202816773,0.07458988,3893.6,3893.5,6.99708104]
[1761202817477,0.07458988,3893.6,3893.5,7.43128104]
[1761202817667,0.07458988,3893.6,3893.5,6.99708104]
[1761202817874,0.07458988,3893.6,3893.5,1.15469784]
[1761202818107,0.17508988,3893.6,3893.5,1.98188]
[1761202819523,0.17508988,3893.6,3891.8,0.4362]
[1761202819677,2.66889734,3893.5,3892.7,3.274]
[1761202819878,2.66889734,3893.5,3892.8,1.5552]
[1761202820103,0.1005,3893.4,3892.9,0.50688]
[1761202820309,0.2089,3892.9,3892.6,1.5572]
[1761202820512,0.2089,3892.9,3892.8,1.5552]
[1761202820677,0.3104,3892.9,3892.8,2.06208]
[1761202820878,0.3104,3892.9,3892.8,0.50688]
[1761202821075,0.3104,3892.9,3892.8,5.33608]
[1761202821617,0.3104,3892.9,3892.6,0.002]
[1761202821802,0.3104,3892.9,3892.7,1.494]
[1761202821803,0.1015,3892.8,3892.7,1.494]
[1761202823221,0.1015,3892.8,3892.7,2.00088]
[1761202824218,2.67034504,3892.8,3892.7,3.273]
[1761202824433,0.1015,3892.8,3892.7,3.273]
[1761202824594,0.1015,3893.2,3892.8,0.50688]
[1761202824810,2.56851837,3893.3,3892.8,0.50688]
[1761202825187,0.1026,3893.2,3892.8,0.50688]
[1761202825809,0.17718988,3893.6,3892.8,0.50688]
[1761202826118,2.56846528,3893.4,3892.8,0.50688]
[1761202826314,0.1026,3893.5,3892.8,0.50688]
[1761202826483,0.2068,3892.9,3892.8,0.50688]
[1761202826679,0.2068,3892.9,3892.6,0.002]
[1761202826992,0.2068,3892.9,3892.8,0.63568]
[1761202827190,0.2068,3892.9,3892.8,3.77988]
[1761202828085,0.3104,3892.9,3892.8,3.77988]
[1761202828502,0.3104,3892.9,3892.6,0.002]
[1761202828687,0.3104,3892.9,3892.7,2.047]
[1761202828688,2.67249096,3892.8,3892.7,2.047]
[1761202828893,0.1036,3892.8,3892.7,2.047]
[1761202829893,2.67244504,3892.8,3892.7,2.047]
[1761202830385,2.67244504,3892.8,3892.6,0.002]
[1761202830610,0.1036,3892.7,3892.6,0.002]
[1761202830815,0.1036,3892.7,3892.6,3.274]
[1761202831702,2.67251103,3892.7,3892.6,0.002]
[1761202831904,2.67251103,3892.7,3892.6,3.273]
[1761202832083,2.56897723,3892.6,3892.0,0.50688]
[1761202832290,2.67262153,3892.6,3892.4,3.271]
[1761202832489,0.1036,3892.5,3892.4,3.271]
[1761202832827,0.1036,3892.5,3891.9,0.002]
[1761202833031,2.56910903,3892.4,3891.9,0.002]
[1761202833217,2.56910903,3892.4,3892.3,0.50888]
[1761202833402,0.1036,3892.4,3892.3,3.77988]
[1761202833731,0.1036,3892.7,3892.3,3.77988]
[1761202834130,2.56885728,3892.8,3892.3,3.77988]
[1761202834630,2.67245728,3892.8,3892.3,3.77988]
[1761202834927,2.56891225,3892.7,3892.3,3.77988]
[1761202835132,2.77559896,3892.9,3892.3,3.77988]
[1761202835430,2.56886074,3892.8,3892.3,3.77988]
[1761202835630,2.56891821,3892.7,3892.3,3.77988]
[1761202836430,2.5688618,3892.8,3892.3,3.77988]
[1761202836725,2.5688618,3892.8,3892.4,0.002]
[1761202836900,2.6724618,3892.8,3892.4,0.002]
[1761202837095,2.6724618,3892.8,3892.7,0.1288]
[1761202837328,2.6724618,3892.8,3892.7,3.3988]
[1761202837725,0.2078,3892.9,3892.7,3.3988]
[1761202837726,0.2078,3892.9,3892.7,3.27]
[1761202837934,0.2078,3892.9,3892.7,3.3988]
[1761202838103,0.2078,3892.9,3892.8,0.50688]
[1761202840036,2.88017905,3892.9,3892.8,0.50688]
[1761202840338,2.88017905,3892.9,3892.8,3.77588]
[1761202840915,2.56884504,3892.8,3892.7,0.1288]
[1761202841114,2.56904303,3892.5,3892.4,0.002]
[1761202841446,2.56904303,3892.5,3892.4,0.378]
[1761202841617,2.67264303,3892.5,3892.4,0.378]
[1761202841817,2.67264303,3892.5,3892.4,0.002]
[1761202843042,4.22784303,3892.5,3892.4,0.002]
[1761202846255,2.56943909,3891.9,3891.8,0.002]
[1761202846440,2.67303909,3891.9,3891.8,0.002]
[1761202847352,4.22823909,3891.9,3891.8,0.002]
[1761202847929,2.56990131,3891.2,3891.1,0.01]
[1761202848363,2.67350131,3891.2,3891.1,0.01]
[1761202848544,2.56996736,3891.1,3891.0,1e-08]
[1761202848742,2.67356736,3891.1,3891.0,1e-08]
[1761202848957,4.22876736,3891.1,3891.0,1e-08]
[1761202850446,2.67356736,3891.1,3891.0,1e-08]
[1761202856452,4.22876736,3891.1,3891.0,1e-08]
[1761202856964,4.12516736,3891.1,3891.0,1e-08]
[1761202857168,4.12616736,3891.1,3891.0,1e-08]
[1761202857369,2.67456736,3891.1,3891.0,1e-08]
[1761202860671,2.57096736,3891.1,3891.0,1e-08]
[1761202860848,2.57096736,3891.1,3891.0,0.12880001]
[1761202861054,2.67456736,3891.1,3891.0,1e-08]
[1761202862644,4.22976736,3891.1,3891.0,1e-08]
[1761202865340,7.50276736,3891.1,3891.0,1e-08]
[1761202867675,2.57023157,3890.7,3889.7,0.002]
[1761202867877,2.57082626,3889.8,3889.7,0.002]
[1761202868107,2.57095845,3889.6,3889.5,1e-08]
[1761202869888,2.89995845,3889.6,3889.5,1e-08]
[1761202870453,2.57095845,3889.6,3889.5,1e-08]
[1761202870979,2.57095845,3889.6,3889.5,0.45490001]
[1761202871147,2.57095845,3889.6,3889.5,1e-08]
[1761202871353,2.89995845,3889.6,3889.5,1e-08]
[1761202872890,3.02875845,3889.6,3889.5,1e-08]
[1761202873387,2.57095845,3889.6,3889.5,0.12880001]
[1761202873750,2.89995845,3889.6,3889.5,1e-08]
[1761202874059,2.57095845,3889.6,3889.5,1e-08]
[1761202874270,2.57095845,3889.6,3889.5,0.45490001]
[1761202874592,2.57095845,3889.6,3889.5,0.58370001]
[1761202874773,2.57095845,3889.6,3889.5,0.12880001]
[1761202875572,2.69975845,3889.6,3889.5,1e-08]
[1761202876003,2.57095845,3889.6,3889.5,1e-08]
[1761202877502,2.57095845,3889.6,3889.5,0.45490001]
[1761202877802,2.57095845,3889.6,3889.5,1e-08]
[1761202878001,2.89995845,3889.6,3889.5,1e-08]
[1761202878300,3.02875845,3889.6,3889.5,1e-08]
[1761202878601,2.69975845,3889.6,3889.5,1e-08]
[1761202879187,3.02875845,3889.6,3889.5,1e-08]
[1761202879493,2.69975845,3889.6,3889.5,1e-08]
[1761202882073,2.69975845,3889.6,3889.5,0.45490001]
[1761202882276,4.25495845,3889.6,3889.5,1e-08]
[1761202885430,4.58395845,3889.6,3889.5,1e-08]
[1761202885901,4.25495845,3889.6,3889.5,1e-08]
[1761202886107,4.58395845,3889.6,3889.5,1e-08]
[1761202888883,4.25495845,3889.6,3889.5,1e-08]
[1761202891306,4.25595845,3889.6,3889.5,1e-08]
[1761202891814,4.12715845,3889.6,3889.5,1e-08]
[1761202892310,4.12715845,3889.6,3889.5,0.46190001]
[1761202893714,4.12715845,3889.6,3889.5,1e-08]
[1761202895004,4.12715845,3889.6,3889.5,0.46190001]
[1761202896114,4.12715845,3889.6,3889.5,1e-08]
[1761202897303,4.25595845,3889.6,3889.5,1e-08]
[1761202899290,4.58305845,3889.6,3889.5,1e-08]
[1761202899924,4.25595845,3889.6,3889.5,1e-08]
[1761202900127,4.12715845,3889.6,3889.5,0.46190001]
[1761202900505,4.12715845,3889.6,3889.5,1e-08]
[1761202903537,4.45425845,3889.6,3889.5,1e-08]
[1761202909452,4.12642287,3889.2,3889.1,1e-08]
[1761202909637,7.39842287,3889.2,3889.1,1e-08]
[1761202909823,7.72552287,3889.2,3889.1,1e-08]
[1761202910026,4.33738734,3888.8,3888.7,1e-08]
[1761202910229,7.60838734,3888.8,3888.7,1e-08]
[1761202910466,8.04758734,3888.8,3888.7,1e-08]
[1761202910727,7.60838734,3888.8,3888.7,1e-08]
[1761202910929,8.04758734,3888.8,3888.7,1e-08]
[1761202911157,7.60838734,3888.8,3888.7,1e-08]
[1761202911339,7.83528734,3888.8,3888.7,1e-08]
[1761202911857,2.57188416,3888.2,3887.3,0.002]
[1761202912055,7.39908416,3888.2,3887.3,0.002]
[1761202912256,7.39908416,3888.2,3887.3,0.4639]
[1761202912456,7.39908416,3888.2,3887.3,0.002]
[1761202912746,7.62598416,3888.2,3887.5,0.4619]
[1761202912946,7.62598416,3888.2,3887.3,0.002]
[1761202917062,2.57241343,3887.4,3887.3,0.002]
[1761202917357,4.12761343,3887.4,3887.3,0.002]
[1761202918144,4.12761343,3887.4,3887.3,0.4639]
[1761202919579,4.25641343,3887.4,3887.3,0.4639]
[1761202920743,4.25641343,3887.4,3887.3,0.002]
[1761202921776,4.25641343,3887.4,3887.3,0.4383]
[1761202921980,4.25641343,3887.4,3887.3,0.002]
[1761202922270,4.25641343,3887.4,3887.3,0.4383]
[1761202922568,2.57294293,3886.6,3885.1,0.2224]
[1761202922768,4.25694293,3886.6,3885.7,0.3543]
[1761202923063,4.39064293,3886.6,3885.7,0.3543]
[1761202923264,4.82694293,3886.6,3885.7,0.3543]
[1761202923565,4.82694293,3886.6,3885.7,0.1288]
[1761202923969,4.69324293,3886.6,3885.9,0.4363]
[1761202924564,4.69324293,3886.6,3885.4,0.2255]
[1761202924565,4.12814293,3886.6,3886.5,0.4383]
[1761202924863,4.12814293,3886.6,3886.5,0.002]
[1761202925052,4.25694293,3886.6,3886.5,0.002]
[1761202925564,4.25694293,3886.6,3886.5,0.4383]
[1761202925764,4.12814293,3886.6,3886.5,0.4383]
[1761202929243,4.12814293,3886.6,3886.5,0.002]
[1761202929567,4.12814293,3886.6,3886.5,0.4383]
[1761202929961,2.57294293,3886.6,3886.5,0.5671]
[1761202930498,2.57294293,3886.6,3886.5,0.1308]
[1761202930641,2.57294293,3886.6,3886.5,0.002]
[1761202931469,2.57294293,3886.6,3886.5,0.4383]
[1761202933267,4.12814293,3886.6,3886.5,0.4383]
[1761202933659,4.12814293,3886.6,3886.5,0.002]
[1761202934980,4.25694293,3886.6,3886.5,0.002]
[1761202935958,4.12814293,3886.6,3886.5,0.002]
[1761202936154,4.12814293,3886.6,3886.5,0.4383]
[1761202938490,4.12814293,3886.6,3886.5,0.002]
[1761202938869,4.12814293,3886.6,3886.5,0.4383]
[1761202939269,4.12814293,3886.6,3886.5,0.002]
[1761202939857,4.12814293,3886.6,3886.5,0.4383]
[1761202940563,1.5552,3886.6,3886.5,3.7163]
[1761202940764,1.5552,3886.6,3886.5,4.08793]
[1761202941364,0.77273482,3887.6,3886.5,4.08793]
[1761202941564,2.57261957,3887.1,3886.6,0.4363]
[1761202941793,4.12794937,3886.9,3886.6,0.4363]
[1761202942110,1.5552,3886.7,3886.6,0.4363]
[1761202942278,2.57376163,3886.9,3886.6,0.4363]
[1761202942475,1.5552,3886.7,3886.6,0.845093]
[1761202942983,2.57287673,3886.7,3886.6,0.845093]
[1761202943299,2.57374651,3886.9,3886.6,0.845093]
[1761202943491,2.57281053,3886.8,3886.7,0.4363]
[1761202944004,2.57375521,3886.9,3886.7,0.4363]
[1761202944471,2.57374591,3886.9,3886.7,0.4363]
[1761202944669,1.5562,3886.9,3886.7,0.4363]
[1761202945276,0.001,3886.9,3886.7,0.4363]
[1761202945674,2.57375392,3886.9,3886.7,0.4363]
[1761202946188,4.12895392,3886.9,3886.8,0.1288]
[1761202946875,4.12895392,3886.9,3886.8,0.5866]
[1761202947475,4.12895392,3886.9,3886.8,0.1288]
[1761202947896,4.12895392,3886.9,3886.8,0.5866]
[1761202950610,1.5562,3886.9,3886.8,0.5866]
[1761202950908,4.12894434,3886.9,3886.8,0.5866]
[1761202951109,4.12894434,3886.9,3886.8,0.1288]
[1761202951274,2.57294293,3886.6,3886.5,0.002]
[1761202951482,4.12814293,3886.6,3886.5,0.002]
[1761202951978,4.12814293,3886.6,3886.5,0.4571]
[1761202956401,4.12814293,3886.6,3886.5,0.002]
[1761202957900,4.90100516,3886.6,3886.5,0.002]
[1761202960584,4.12814293,3886.6,3886.5,0.002]
[1761202961204,4.12814293,3886.6,3886.5,0.1308]
[1761202961406,4.12814293,3886.6,3886.5,0.5859]
[1761202963202,0.001,3886.9,3886.6,0.50688]
[1761202963402,0.001,3886.9,3886.7,0.131848]
[1761202963603,0.001,3886.9,3886.8,0.1288]
[1761202963806,1.5562,3886.9,3886.8,0.5839]
[1761202964004,0.001,3886.9,3886.8,0.5839]
[1761202964414,0.001,3886.9,3886.8,1.09078]
[1761202964618,0.001,3886.9,3886.8,1.579046]
[1761202965601,0.001,3886.9,3886.8,4.15185653]
[1761202966327,0.001,3886.9,3886.8,1.579046]
[1761202967128,0.001,3886.9,3886.8,4.863046]
[1761202967331,0.001,3886.9,3886.8,4.37478]
[1761202967935,0.00097081,3887.3,3886.9,0.50688]
[1761202968114,0.00097081,3887.3,3887.2,0.73258]
[1761202968312,0.00097081,3887.3,3887.2,0.86138]
[1761202968517,4.12865042,3887.3,3887.2,1.448128]
[1761202969139,0.00097081,3887.3,3887.2,1.448128]
[1761202969434,1.55617081,3887.3,3887.2,1.448128]
[1761202969633,4.12865042,3887.3,3887.2,1.448128]
[1761202969935,4.12865042,3887.3,3887.2,0.993028]
[1761202970234,4.12865042,3887.3,3887.2,1.448128]
[1761202970416,1.55617081,3887.3,3887.2,1.448128]
[1761202970840,4.12865042,3887.3,3887.2,1.448128]
[1761202971909,4.12865042,3887.3,3887.2,0.941248]
[1761202972110,4.12865042,3887.3,3887.2,0.8096]
[1761202974218,4.12865042,3887.3,3887.2,3.4118]
[1761202977126,4.22875042,3887.3,3887.2,3.4118]
[1761202977331,4.12865042,3887.3,3887.2,3.4118]
[1761202979252,4.22875042,3887.3,3887.2,3.4118]
[1761202979470,4.12865042,3887.3,3887.2,3.4118]
[1761202981481,4.22875042,3887.3,3887.2,3.4118]
[1761202981681,4.22875042,3887.3,3887.2,3.283]
[1761202982176,4.12774579,3887.2,3887.1,0.002]
[1761202984783,4.90047265,3887.2,3887.1,0.002]
[1761202985474,5.00057265,3887.2,3887.1,0.002]
[1761202988647,2.57294293,3886.6,3886.5,0.002]
[1761202988870,4.12814293,3886.6,3886.5,0.002]
[1761202989257,4.12814293,3886.6,3886.5,0.4733]
[1761202989481,4.12814293,3886.6,3886.5,0.002]
[1761202991570,4.22824293,3886.6,3886.5,0.1308]
[1761202991878,4.12814293,3886.6,3886.5,0.1308]
[1761202992484,4.22824293,3886.6,3886.5,0.1308]
[1761202992650,4.12814293,3886.6,3886.5,0.1308]
[1761202993877,4.12814293,3886.6,3886.5,0.002]
[1761202994083,4.22824293,3886.6,3886.5,0.002]
[1761202994256,4.12814293,3886.6,3886.5,0.002]
[1761202995380,2.57320776,3886.2,3886.1,0.002]
[1761202995586,4.12840776,3886.2,3886.1,0.002]
[1761202995758,4.22850776,3886.2,3886.1,0.002]
[1761202995958,4.35730776,3886.2,3886.1,0.002]
[1761202996159,4.48610776,3886.2,3886.1,0.002]
[1761202997691,7.63730776,3886.2,3886.1,0.002]
[1761202997856,7.54120776,3886.2,3886.1,0.002]
[1761202998058,7.64130776,3886.2,3886.1,0.002]
[1761202998275,4.35730776,3886.2,3886.1,0.002]
[1761203000872,4.25720776,3886.2,3886.1,0.002]
[1761203001680,2.70200776,3886.2,3886.1,0.002]
[1761203002187,2.70200776,3886.2,3886.1,0.226]
[1761203002365,2.57320776,3886.2,3886.1,0.6973]
[1761203002787,3.287,3887.0,3886.1,0.6973]
[1761203003084,2.57320776,3886.2,3886.1,0.6973]
[1761203003287,2.57320776,3886.2,3886.1,0.226]
[1761203003880,1.5552,3886.3,3886.1,0.6973]
[1761203003881,4.12835662,3886.3,3886.1,0.6973]
[1761203004066,2.57315662,3886.3,3886.1,0.6973]
[1761203004262,4.12835662,3886.3,3886.2,0.458]
[1761203004463,2.57281349,3886.8,3886.2,0.96488]
[1761203004815,0.00097081,3887.3,3886.2,0.96488]
[1761203004816,2.57295548,3886.6,3886.2,0.96488]
[1761203005092,4.12802327,3886.8,3886.3,0.458]
[1761203005265,2.57320564,3886.3,3886.1,0.002]
[1761203005465,4.12840776,3886.2,3886.1,0.002]
[1761203007298,1.5552,3886.2,3886.1,0.6874]
[1761203007485,4.12840776,3886.2,3886.1,0.8162]
[1761203008369,4.12840776,3886.2,3886.1,0.3582]
[1761203009413,4.12840776,3886.2,3886.1,0.8219]
[1761203010608,4.12840776,3886.2,3886.1,0.1308]
[1761203011370,4.23080776,3886.2,3886.1,0.1308]
[1761203011891,4.12840776,3886.2,3886.1,0.1308]
[1761203012904,4.23080776,3886.2,3886.1,0.002]
[1761203013407,5.00379146,3886.2,3886.1,0.002]
[1761203014190,4.90139146,3886.2,3886.1,0.002]
[1761203014390,5.00379146,3886.2,3886.1,0.002]
[1761203015172,4.90139146,3886.2,3886.1,0.002]
[1761203018323,5.00379146,3886.2,3886.1,0.002]
[1761203019325,4.90139146,3886.2,3886.1,0.002]
[1761203019935,2.57320776,3886.2,3886.1,0.002]
[1761203020229,4.12840776,3886.2,3886.1,0.6918]
[1761203020591,4.12840776,3886.2,3886.1,0.002]
[1761203025993,4.25720776,3886.2,3886.1,0.002]
[1761203026294,4.12840776,3886.2,3886.1,0.002]
[1761203028610,2.57320776,3886.2,3886.1,0.002]
[1761203029524,2.67560776,3886.2,3886.1,0.002]
[1761203029722,2.57320776,3886.2,3886.1,0.002]
[1761203031194,4.23080776,3886.2,3886.1,0.002]
[1761203031394,7.51180776,3886.2,3886.1,0.002]
[1761203031598,7.97550776,3886.2,3886.1,0.002]
[1761203035664,8.10430776,3886.2,3886.1,0.002]
[1761203036721,4.12867264,3885.8,3885.7,1e-08]
[1761203037612,4.35677264,3885.8,3885.7,1e-08]
[1761203038223,4.63597264,3885.8,3885.7,1e-08]
[1761203038614,4.35677264,3885.8,3885.7,1e-08]
[1761203039419,7.63677264,3885.8,3885.7,1e-08]
[1761203040045,7.73577264,3885.8,3885.7,1e-08]
[1761203042045,4.35677264,3885.8,3885.7,1e-08]
[1761203042252,7.63677264,3885.8,3885.7,1e-08]
[1761203043720,7.20845664,3885.8,3885.7,1e-08]
[1761203044348,6.98035664,3885.8,3885.7,1e-08]
[1761203044549,7.08015664,3885.8,3885.7,1e-08]
[1761203045017,6.98035664,3885.8,3885.7,1e-08]
[1761203045837,7.08015664,3885.8,3885.7,1e-08]
[1761203046618,7.08015664,3885.8,3885.1,0.002]
[1761203046619,4.12907007,3885.2,3885.1,0.002]
[1761203047356,2.57440016,3884.4,3884.3,0.6635]
[1761203047534,2.71782295,3884.4,3884.3,0.224]
[1761203047722,2.71782295,3884.4,3884.3,0.3528]
[1761203047922,2.71782295,3884.4,3884.3,0.7923]
[1761203048124,2.57440016,3884.4,3884.3,0.7923]
[1761203048655,0.14284395,3884.9,3884.3,0.7923]
[1761203048831,2.57433389,3884.5,3884.4,0.4395]
[1761203049448,2.57433389,3884.5,3884.4,0.5683]
[1761203050945,2.57433389,3884.5,3884.4,0.1288]
[1761203051149,2.57433389,3884.5,3884.4,0.5683]
[1761203051622,4.12953389,3884.5,3884.4,0.4395]
[1761203052359,2.57466529,3884.0,3883.9,0.2257]
[1761203052860,2.57466529,3884.0,3883.9,0.794]
[1761203059155,1.5552,3884.5,3883.9,0.794]
[1761203059358,9.148,3886.3,3883.9,0.794]
[1761203059359,0.1288,3885.3,3884.4,0.2205]
[1761203059558,2.57438367,3884.5,3884.4,0.2205]
[1761203059753,0.1288,3885.3,3884.4,3.937]
[1761203060053,2.57433389,3884.5,3884.4,4.57268]
[1761203060255,2.57433389,3884.5,3884.4,4.00438]
[1761203060457,2.57433389,3884.5,3884.4,4.533618]
[1761203060857,2.57433389,3884.5,3884.4,4.973118]
[1761203061052,2.57433389,3884.5,3884.4,1.189238]
[1761203061257,2.57433389,3884.5,3884.4,0.7888]
[1761203061466,2.57433389,3884.5,3884.4,0.3493]
[1761203061665,2.57426271,3884.7,3884.4,0.7888]
[1761203061871,2.57433389,3884.5,3884.4,0.7888]
[1761203062075,2.57433389,3884.5,3884.4,0.2205]
[1761203062271,2.57433389,3884.5,3884.4,0.3493]
[1761203062690,2.57433389,3884.5,3884.4,0.7888]
[1761203063694,2.57433389,3884.5,3884.4,1.19538]
[1761203065361,2.57433389,3884.5,3884.4,0.7888]
[1761203066078,2.57433389,3884.5,3884.4,4.0658]
[1761203066486,2.57433389,3884.5,3884.4,4.0734]
[1761203067006,0.001,3885.2,3884.5,0.50688]
[1761203067201,0.001,3885.2,3885.1,0.2301]
[1761203067369,0.001,3885.2,3885.1,4.46108]
[1761203068784,0.001,3885.2,3885.1,7.03501632]
[1761203068970,0.001,3885.2,3885.1,4.46108]
[1761203069712,0.001,3885.2,3885.1,7.03501632]
[1761203069911,0.001,3885.2,3885.1,7.99593067]
[1761203070413,0.001,3885.2,3885.1,5.42199435]
[1761203070610,0.001,3885.2,3885.1,7.99593067]
[1761203070817,0.001,3885.2,3885.1,5.42199435]
[1761203071014,0.001,3885.2,3885.1,7.99593067]
[1761203071320,0.001,3885.2,3885.1,9.55113067]
[1761203072616,0.001,3885.2,3885.1,6.97719435]
[1761203072800,0.001,3885.2,3885.1,3.5071]
[1761203073005,0.001,3885.2,3885.1,3.9511]
[1761203073318,2.57487007,3885.2,3885.1,3.9511]